Cogmind - Beta 13 @@@ ROGUE MODE // 2024.04.12 @ 10:30:48 Player: Strawberry Result: Destroyed by P-60 Hacker with Shock Rifle Performance ------------- Evolutions (4) 2000 Regions Visited (6) 1200 Robots Destroyed (38) 190 Value Destroyed (1752) 1752 Prototype IDs (0) 0 Alien Tech Used (0) 0 Bonus (-89) -89 TOTAL SCORE: 5053 Bonus ------- High Alert Combat Kills 13 Friendly Fire -102 Cogmind --------- Core Integrity 0/850 Matter 12/300 Energy 100/100 System Corruption 32% Temperature Cool (0) Movement Core (350) Ox6 Location -6/Factory Parts ------- > --- POWER (2) -------- (None) > --- PROPULSION (4) --- (None) > --- UTILITY (6) ------ Large Storage Unit Triangulator > --- WEAPON (3) ------- (None) > --- INVENTORY (15) --- Fission Core Medium Storage Unit Recalibrator Improved Datajack Blade Trap Peak State ------------ > --- POWER ------------ Fission Core Fusion Compressor > --- PROPULSION ------- Gravmag System Gravmag System Gravmag System Gravmag System > --- UTILITY ---------- Improved Heat Sink Large Storage Unit Triangulator Enhanced Optical Array Transmission Jammer ECM Suite > --- WEAPON ----------- Proton Cannon Proton Cannon Heavy Ion Cannon > --- INVENTORY -------- Light Deuterium Engine Gravmag System Medium Storage Unit Recalibrator EM Shotgun EM Shotgun Ion Cannon Improved Datajack Remote Datajack Blade Trap [Rating: 61] Favorites ----------- Power Light Ion Engine Engine Light Ion Engine Power Core Fusion Compressor Propulsion Aluminum Leg Leg Aluminum Leg Hover Unit Gravmag System Flight Unit Nuclear Pulse Thruster Utility ECM Suite Device ECM Suite Storage Large Storage Unit Processor Enhanced Optical Array Protection Propulsion Shielding Weapon Assault Rifle Energy Gun Beam Rifle Energy Cannon Heavy Ion Cannon Ballistic Gun Assault Rifle Launcher Grenade Launcher Special Weapon Remote Datajack Slashing Weapon Mining Claw Special Melee Weapon Improved Datajack Build | -11 -10 -10 -9 -8 -7 -6 ------- Run | Yrd Mat Min Mat Mat Fac Fac Slots Evolved 8 | . . . 2 2 2 2 Power 1 | . . . . . 1 . Propulsion 2 | . . . 1 1 . . Utility 4 | . . . 1 1 1 1 Weapon 1 | . . . . . . 1 Parts Attached 105 | 5 1 6 18 22 10 43 Power 14 | 1 . . 1 2 2 8 Engine 8 | 1 . . 1 2 1 3 Core 6 | . . . . . 1 5 Reactor . | . . . . . . . Propulsion 26 | 2 . 3 2 6 2 11 Treads . | . . . . . . . Leg 19 | 2 . 3 2 6 2 4 Wheel . | . . . . . . . Hover 6 | . . . . . . 6 Flight 1 | . . . . . . 1 Utility 29 | . 1 1 8 7 2 10 Device 17 | . . 1 3 4 2 7 Storage 6 | . 1 . 2 3 . . Processor 4 | . . . 2 . . 2 Hackware . | . . . . . . . Protection 2 | . . . 1 . . 1 Artifact . | . . . . . . . Weapon 36 | 2 . 2 7 7 4 14 Energy Gun 14 | . . . 5 2 3 4 Energy Cannon 9 | . . . . 2 1 6 Ballistic Gun 7 | 2 . 1 2 2 . . Ballistic Cannon . | . . . . . . . Launcher 1 | . . . . . . 1 Special Weapon 3 | . . . . . . 3 Impact Weapon . | . . . . . . . Slashing Weapon 1 | . . 1 . . . . Piercing Weapon . | . . . . . . . Special Melee Weapon 1 | . . . . 1 . . Unidentified Prototypes . | . . . . . . . Corrupted Parts 1 | . . . . . . 1 System Corruption 10 | . . . . . . 10 Parts Lost 43 | . . 1 . 4 . 38 Power 6 | . . . . 1 . 5 Propulsion 14 | . . 1 . 2 . 11 Utility 10 | . . . . 1 . 9 Weapon 13 | . . . . . . 13 Highest Loss Streak 6 | . . 1 . 4 . 6 To Critical Strikes . | . . . . . . . Average Slot Usage (%) 87 | . 74 98 99 95 99 79 Engine 6 | . 14 14 11 8 8 1 Core 4 | . . . . . 5 8 Leg 20 | . 28 27 33 34 30 7 Hover 3 | . . . . . . 7 Device 20 | . . 14 11 20 29 24 Storage 8 | . 3 14 11 9 7 6 Processor 2 | . . . 7 . . 2 Protection 1 | . . . 3 3 . . Energy Gun 6 | . . . 14 9 10 3 Energy Cannon 5 | . . . . 2 4 8 Ballistic Gun 5 | . 28 24 7 5 . . Special Weapon 1 | . . . . . . 3 Naked Turns . | . . . . . . . Heaviest Build 66 | 6 11 14 22 41 47 66 Greatest Support 54 | 20 20 20 30 54 54 54 Greatest Overweight (x) 15 | . . 1 . 2 . 15 Average Overweight (x) 1 | . . . . . . 2 Largest Inventory Capacity 15 | 5 8 8 10 15 15 15 Average Capacity 12 | 5 5 8 8 14 15 15 Most Carried 15 | 4 6 8 9 15 13 15 Average Carried 8 | 2 4 6 7 12 12 8 Final Capacity 15 | 5 8 8 10 15 15 15 Final Carried 14 | 3 6 8 9 14 13 5 Class Distribution -------------------- 39% | Mutant 24% | Infiltrator-Mutant 13% | Infiltrator-Skirmisher 9% | Infiltrator-Gunner 8% | Infiltrator-Tank 5% | Scavenger-Mutant Dominant Class ---------------- Mutant | -10/Materials Mutant | -10/Mines Mutant | -9/Materials Mutant | -8/Materials Scavenger-Mutant | -7/Factory Infiltrator-Mutant | -6/Factory Resources | -11 -10 -10 -9 -8 -7 -6 ----------- Run | Yrd Mat Min Mat Mat Fac Fac Matter Collected 1702 | 250 . 118 129 237 49 919 Remotely . | . . . . . . . Salvage Created 1581 | . . 124 129 313 49 966 Parts 76 | . . 8 13 17 3 35 Haulers Intercepted . | . . . . . . . Recyclers Shooed . | . . . . . . . Parts Field Recycled . | . . . . . . . Retrieved Matter . | . . . . . . . Parts Self-Destructed . | . . . . . . . Prevented . | . . . . . . . Kills | -11 -10 -10 -9 -8 -7 -6 ------- Run | Yrd Mat Min Mat Mat Fac Fac Combat Hostiles Destroyed 30 | . . 4 1 5 1 19 Melee 1 | . . . . 1 . . Guns 14 | . . 4 1 4 1 4 Cannons 9 | . . . . . . 9 AOE 5 | . . . . . . 5 Classes Destroyed 9 | . . 2 2 2 . 3 Worker 1 | . . . . 1 . . Builder 2 | . . . 1 . . 1 Watcher 5 | . . . 3 2 . . Swarmer 3 | . . 2 . . . 1 Grunt 18 | . . 2 1 3 1 11 Brawler 1 | . . . . . . 1 Duelist 1 | . . . . . . 1 Sentry 4 | . . . . 2 . 2 Programmer 3 | . . . . . . 3 Best Kill Streak 4 | . . 3 2 3 1 4 Combat Bots Only 3 | . . 3 1 2 1 3 Max Kills in Single Turn 3 | . . 1 1 1 1 3 Gunslinging . | . . . . . . . Exploded 2 | . . . . . . 2 Melee 1 | . . . . 1 . . Uniques/NPCs Destroyed . | . . . . . . . Combat | -11 -10 -10 -9 -8 -7 -6 -------- Run | Yrd Mat Min Mat Mat Fac Fac Hostile Shots Fired 447 | . . 44 4 63 2 334 Missed 129 | . . 10 1 18 1 99 Damage Taken 4937 | . . 388 31 669 55 3794 Core 1131 | . . 81 . 198 . 852 Absorbed by Shields 201 | . . . . . . 201 Redirected to Shielding 51 | . . . 3 48 . . Regen/Repaired (Parts) 127 | . . . . 127 . . Core Remaining (%) 86 | 100 . 67 100 64 100 . Volleys Fired 156 | . . 17 10 33 2 94 Largest 3 | . . 2 2 2 2 3 Hottest 215 | . . 40 101 120 90 215 Shots Fired 238 | . . 23 18 48 4 145 Gun 135 | . . 23 18 42 4 48 Cannon 95 | . . . . 6 . 89 Launcher 1 | . . . . . . 1 Special 7 | . . . . . . 7 Kinetic 32 | . . 23 2 7 . . Thermal 129 | . . . 6 31 . 92 Explosive 1 | . . . . . . 1 Electromagnetic 69 | . . . 10 10 4 45 Robot Hit Streak 19 | . . 6 9 19 3 8 Robot Miss Streak 3 | . . 1 3 3 1 3 Penetration Max . | . . . . . . . Secondary Targets . | . . . . . . . Shots Hit Robots 167 | . . 19 14 37 4 93 Core Hits 78 | . . 7 6 19 3 43 Critical Kills 1 | . . . . 1 . . Critical Parts Destroyed . | . . . . . . . Critical Strikes 3 | . . . . 3 . . Burn 2 | . . . . 2 . . Meltdown 1 | . . . . 1 . . Melee Attacks 5 | . . 4 . 1 . . Impact . | . . . . . . . Slashing 4 | . . 4 . . . . Piercing . | . . . . . . . Sneak Attacks . | . . . . . . . Combat Hostiles . | . . . . . . . Follow-up Attacks . | . . . . . . . Damage Inflicted 4043 | . 7 212 260 597 31 2936 Guns 1595 | . . 187 260 475 31 642 Cannons 1345 | . . . . 67 . 1278 Explosions 994 | . . . . . . 994 Melee 25 | . . 25 . . . . Ramming 84 | . 7 . . 55 . 22 Kinetic 248 | . . 187 15 46 . . Thermal 2610 | . . . 85 373 . 2152 Explosive 197 | . . . . . . 197 Electromagnetic 879 | . . . 160 123 31 565 Impact . | . . . . . . . Slashing 25 | . . 25 . . . . Piercing . | . . . . . . . Highest Corruption 31 | . . . . . 1 31 Average Corruption 15 | . . . . . 1 16 Corruption Purged . | . . . . . . . Corruption Blocked . | . . . . . . . Effects 70 | . . . . . 1 69 Message Errors 16 | . . . . . . 16 Matter Fused 13 | . . . . . 1 12 Heat Flow Errors 8 | . . . . . . 8 Energy Discharges 13 | . . . . . . 13 Parts Rejected 2 | . . . . . . 2 Parts Fused 1 | . . . . . . 1 Data Loss (minor) 6 | . . . . . . 6 Data Loss (major) 2 | . . . . . . 2 Misfires 3 | . . . . . . 3 Misdirections 1 | . . . . . . 1 Weapon Failures 5 | . . . . . . 5 Overload Shots . | . . . . . . . Overflow Damage 49 | . . . . 9 . 40 Projectiles 9 | . . . . 9 . . Explosions 40 | . . . . . . 40 Melee . | . . . . . . . Knockbacks . | . . . . . . . Impact . | . . . . . . . Kinetic . | . . . . . . . Secondary . | . . . . . . . Self-Inflicted Damage 239 | . . . . . 41 198 Shots 4 | . . . . . 1 3 Rammed 2 | . . . . . . 2 Targets Rammed 17 | . 1 . . 13 . 3 Kicked 15 | . 1 . . 13 . 1 Crushed . | . . . . . . . Highest Temperature 438 | . . 17 98 126 42 438 Average Temperature 128 | . . 7 41 42 21 154 Received Heat Transfer 1508 | . . 183 18 297 9 1001 Effects 10 | . . . . . . 10 Shutdowns 6 | . . . . . . 6 Energy Bleed 2 | . . . . . . 2 Short Circuit 1 | . . . . . . 1 Damage (minor) 1 | . . . . . . 1 Siege Activations . | . . . . . . . Robots Corrupted 1 | . . . . . . 1 Combat Hostiles 1 | . . . . . . 1 Parts Fried 3 | . . . 3 . . . Impact Corruptions . | . . . . . . . Robots Melted 1 | . . . . 1 . . Combat Hostiles . | . . . . . . . Parts Melted 11 | . . . . 6 . 5 Heat Transferred 3880 | . . . 222 1036 . 2622 Parts Sabotaged . | . . . . . . . Parts Stolen . | . . . . . . . Parts Stripped . | . . . . . . . Power Chain Reactions 1 | . . . . . . 1 Alert | -11 -10 -10 -9 -8 -7 -6 ------- Run | Yrd Mat Min Mat Mat Fac Fac Peak Influence 562 | . 30 101 67 126 82 562 Initial 47 | . . 11 39 12 47 39 Average 138 | . 16 51 31 55 75 237 Maximum Alert Level 2 | . . . . . . 2 Low Security (%) 69 | 100 100 100 100 100 100 36 Level 1 27 | . . . . . . 57 Level 2 2 | . . . . . . 6 Level 3 . | . . . . . . . Level 4 . | . . . . . . . Level 5 . | . . . . . . . High Security . | . . . . . . . Max Security . | . . . . . . . Squads Dispatched 12 | . 1 . 2 1 . 8 Investigation 2 | . . . 1 1 . . Extermination 3 | . . . . . . 3 Reinforcement 3 | . 1 . 1 . . 1 Assault 1 | . . . . . . 1 Garrison 3 | . . . . . . 3 Intercept . | . . . . . . . Searches Triggered . | . . . . . . . Construction Impeded . | . . . . . . . Haulers Reinforced . | . . . . . . . Active Scanning Responses . | . . . . . . . Cargo Convoy Interrupts . | . . . . . . . Stealth | -11 -10 -10 -9 -8 -7 -6 --------- Run | Yrd Mat Min Mat Mat Fac Fac Distress Signals 1 | . . . . . . 1 Communications Jammed 33 | . . . . . . 33 Distress Signals 33 | . . . . . . 33 Times Spotted 86 | . 4 7 7 14 1 53 Peak Tracking Total 6 | . 2 5 2 5 1 6 Tactical Retreats 16 | . . 2 2 1 . 11 Traps | -11 -10 -10 -9 -8 -7 -6 ------- Run | Yrd Mat Min Mat Mat Fac Fac Traps Triggered 5 | . . . 3 . . 2 Indirectly . | . . . . . . . Trap Hack Attempts . | . . . . . . . Triggered . | . . . . . . . Disarmed . | . . . . . . . Reprogrammed . | . . . . . . . Reused . | . . . . . . . Traps Extracted . | . . . . . . . Installed 1 | . . . 1 . . . Triggered . | . . . . . . . Most Traps Carried 3 | . . 3 3 1 1 1 Machines | -11 -10 -10 -9 -8 -7 -6 ---------- Run | Yrd Mat Min Mat Mat Fac Fac Machines Disabled 16 | . . . . . 1 15 Max in Single Turn 4 | . . . . . 1 4 Garrison Access 1 | . . . . . . 1 Machines Repaired . | . . . . . . . Machines Dismantled . | . . . . . . . Machines Sabotaged . | . . . . . . . Overloaded Fab Kills . | . . . . . . . Hacking | -11 -10 -10 -9 -8 -7 -6 --------- Run | Yrd Mat Min Mat Mat Fac Fac Machines Accessed 8 | . 1 . 1 4 . 2 Terminals 6 | . 1 . 1 3 . 1 Fabricators 1 | . . . . . . 1 Repair Stations 1 | . . . . 1 . . Recycling Units . | . . . . . . . Scanalyzers . | . . . . . . . Garrison Access . | . . . . . . . Total Hacks 28 | . 2 . 6 15 . 5 Successful 19 | . 2 . 4 10 . 3 Failed 9 | . . . 2 5 . 2 Catastrophic 2 | . . . 1 . . 1 Database Lockouts . | . . . . . . . Manual 2 | . . . 1 1 . . Terminals 23 | . 2 . 6 11 . 4 Fabricators 1 | . . . . . . 1 Repair Stations 4 | . . . . 4 . . Recycling Units . | . . . . . . . Scanalyzers . | . . . . . . . Garrison Access . | . . . . . . . Terminal Hacks 16 | . 2 . 4 7 . 3 Record 5 | . . . . 3 . 2 Emergency Access Points 1 | . 1 . . . . . Alert Level 6 | . 1 . 2 3 . . Unreport Threat 1 | . . . 1 . . . Recall Investigation 1 | . . . 1 . . . Zone Layout 2 | . . . . 1 . 1 Fabricator Hacks . | . . . . . . . Repair Station Hacks 3 | . . . . 3 . . Scan Component 2 | . . . . 2 . . Repair 1 | . . . . 1 . . Recycling Unit Hacks . | . . . . . . . Scanalyzer . | . . . . . . . Garrison Access Hacks . | . . . . . . . Unauthorized Hacks . | . . . . . . . Terminals . | . . . . . . . Fabricators . | . . . . . . . Repair Stations . | . . . . . . . Recycling Units . | . . . . . . . Scanalyzers . | . . . . . . . Garrison Access . | . . . . . . . Data Cores Recovered . | . . . . . . . Used . | . . . . . . . Hacking Detections 2 | . . . . 1 . 1 Full Trace Events 1 | . . . . 1 . . Feedback Events . | . . . . . . . Feedback Blocked . | . . . . . . . Robot Schematics Acquired . | . . . . . . . Robots Built . | . . . . . . . Authchips . | . . . . . . . Time . | . . . . . . . Total Robot Build Rating . | . . . . . . . Part Schematics Acquired . | . . . . . . . Parts Built . | . . . . . . . Authchips . | . . . . . . . Time . | . . . . . . . Total Part Build Rating . | . . . . . . . Parts Repaired 1 | . . . . 1 . . Time 38 | . . . . 38 . . Parts Recycled . | . . . . . . . Recycled Matter . | . . . . . . . Retrieved Matter . | . . . . . . . Retrieved Components . | . . . . . . . Parts Scanalyzed . | . . . . . . . Part Schematics Acquired . | . . . . . . . Parts Damaged . | . . . . . . . Bothacking | -11 -10 -10 -9 -8 -7 -6 ------------ Run | Yrd Mat Min Mat Mat Fac Fac Used RIF Installer . | . . . . . . . Robots Hacked 2 | . . . . 1 . 1 Non-combat . | . . . . . . . Combat 2 | . . . . 1 . 1 Robot Hacks Applied 2 | . . . . 1 . 1 parse_system 2 | . . . . 1 . 1 Relay Couplers Released 2 | . . . . . . 2 Machine Destruction 2 | . . . . . . 2 Fabnet Peak Effective % . | . . . . . . . Robots Rewired . | . . . . . . . Allies Hacked . | . . . . . . . Hacks Repelled . | . . . . . . . Allies | -11 -10 -10 -9 -8 -7 -6 -------- Run | Yrd Mat Min Mat Mat Fac Fac Total Allies . | . . . . . . . Largest Group . | . . . . . . . Highest-Rated Group . | . . . . . . . Highest-Rated Ally . | . . . . . . . Total Orders . | . . . . . . . Ally Attacks . | . . . . . . . Total Damage . | . . . . . . . Kills . | . . . . . . . Allies Corrupted . | . . . . . . . Allies Melted . | . . . . . . . Intel | -11 -10 -10 -9 -8 -7 -6 ------- Run | Yrd Mat Min Mat Mat Fac Fac Robot Analysis Total . | . . . . . . . Derelict Logs Recovered . | . . . . . . . Drone Launches 7 | . . . . . . 7 Drone Recoveries 4 | . . . . . . 4 Exploration | -11 -10 -10 -9 -8 -7 -6 ------------- Run | Yrd Mat Min Mat Mat Fac Fac Turns Passed 3945 | 92 150 289 552 748 189 1925 Spaces Moved 1741 | 70 119 181 292 313 39 727 Core 74 | 15 . . . . . 59 Treads . | . . . . . . . Legs 1297 | 55 119 181 292 313 39 298 Wheels . | . . . . . . . Hover 370 | . . . . . . 370 Flight . | . . . . . . . Fastest Speed 50 | 50 120 120 120 120 125 108 Average Speed 165 | 105 120 122 120 150 125 216 Slowest Speed 800 | 120 120 190 120 270 125 800 Overloaded Moves . | . . . . . . . Propulsion Burnouts . | . . . . . . . Robots Hopped . | . . . . . . . Cave-ins Triggered . | . . . . . . . Exploration Rate (%) 19 | 8 18 36 27 30 1 19 Regions Visited 6 Branch Regions 1 Pre-discovered Areas . | . . . . . . . Known Exits Taken . | . . . . . . . Unknown Exits Taken 6 | 1 1 1 1 1 1 . Scrap Searched 1 | . . 1 . . . . Spaces Dug . | . . . . . . . Terrain Destroyed 68 | . . . . 1 . 67 Melee . | . . . . . . . Projectile 4 | . . . . 1 . 3 AOE 64 | . . . . . . 64 Terrain Rammed . | . . . . . . . Walls Destroyed . | . . . . . . . Machines Disabled . | . . . . . . . Actions | -11 -10 -10 -9 -8 -7 -6 --------- Run | Yrd Mat Min Mat Mat Fac Fac Total 2556 | 88 126 219 475 535 172 941 Wait 411 | 6 . . 126 133 119 27 Move 1735 | 69 118 180 291 312 38 727 Hop . | . . . . . . . Pick Up 86 | 8 5 8 17 16 2 30 Fast Attach . | . . . . . . . Attach 58 | 5 1 3 6 9 2 32 Detach 2 | . . . . 1 . 1 Swap 47 | . . 3 12 13 8 11 Drop 30 | . 1 4 12 4 1 8 Fire 156 | . . 17 10 33 2 94 Melee 5 | . . 4 . 1 . . Ram 2 | . . . . . . 2 Kick 15 | . 1 . . 13 . 1 Crush . | . . . . . . . Escape Stasis 8 | . . . . . . 8 Rewire . | . . . . . . . Trap 1 | . . . 1 . . . Miscellaneous . | . . . . . . . Route ------- -11/Scrapyard -10/Materials -10/Mines -9/Materials -8/Materials -7/Factory -6/Factory History --------- Turn | Location | Event 2 | -11/Scrapyard | Met Revision 17 74 | -11/Scrapyard | Discovered new exit (range 8) 93 | -11/Scrapyard | Entered Materials 207 | -10/Materials | Discovered new exit (range 10) 243 | -10/Materials | Entered Mines 263 | -10/Mines | Assembled infested the area 313 | -10/Mines | Build established: Mutant 332 | -10/Mines | Found a hidden stash of uninstalled traps 522 | -10/Mines | Discovered new exit (range 9) 532 | -10/Mines | Entered Materials 532 | -9/Materials | Evolved 2 slots: Propulsion x1, Utility x1 1062 | -9/Materials | Discovered new exit (range 11) 1084 | -9/Materials | Entered another Materials area 1084 | -8/Materials | Evolved 2 slots: Propulsion x1, Utility x1 1412 | -8/Materials | Lost 4 parts (1p2n1u) 1529 | -8/Materials | Repaired Titanium Leg 1824 | -8/Materials | Discovered new exit (range 4) 1832 | -8/Materials | Entered Factory 1832 | -7/Factory | Evolved 2 slots: Power x1, Utility x1 1833 | -7/Factory | Discovered new exit (range 14) 2021 | -7/Factory | Entered another Factory area 2021 | -6/Factory | Evolved 2 slots: Utility x1, Weapon x1 2282 | -6/Factory | Lost 5 parts (1p1n1u2w) 2658 | -6/Factory | Build established: Infiltrator-Skirmisher 2927 | -6/Factory | System corruption reached 10% 2985 | -6/Factory | Lost 6 parts (1p1n2u2w) 3307 | -6/Factory | Core integrity fell below 50% 3383 | -6/Factory | Lost 4 parts (1p2n1w) 3440 | -6/Factory | Build established: Infiltrator-Mutant 3794 | -6/Factory | Build established: Infiltrator-Gunner 3888 | -6/Factory | Core integrity fell below 20% 3897 | -6/Factory | Lost 5 parts (1p3u1w) 3938 | -6/Factory | System corruption reached 30% 3946 | -6/Factory | Destroyed by P-60 Hacker with Shock Rifle Last Messages --------------- System corrupted: Component data lost. K-01 Serf collects debris. Broken Imp. Gravmag System destroyed. Remote Datajack destroyed. K-01 Serf collects debris. Acquired 3 matter. Jacked P-60 Hacker... Command string: asd No effect. Drone released from Drone Bay. Drone retrieved by Drone Bay. System corrupted: Component data lost. K-01 Serf collects debris. K-01 Serf cleans the Matter Pump. System corrupted: Transmission Jammer rejected. K-01 Serf cleans the Matter Pump. Drone Bay destroyed. Remote Datajack destroyed. K-01 Serf cleans the Matter Pump. [Achievement: 5k Club] Map ----- +----------------------------------------------------+ | ?????????????????????????????????? ????????? | | ??????????????????????????????????# #????????? | | ??????????????????????????????????# #????????? | | ??????????????????????????????????# #????????? | | ?????????????????????############## #????????? | | ?????????????????????# # #########? | | ?????????????????????# # # #? | | ?????????????????????# """"""""" # # #? | | ?????????????????????# # # # | | ?????????????????????# """"""""" # # """ # | | ?????????????????????# # # """ !# | | ?????????????????????# """"""""" + % + """ #= | | ?????????????????????# # # # | | ?????????????????????# """"""""" # # ! #? | | ?????????????????????# # # ! #? | | ?????????????????????# """"""""" # #! #? | | ?????????????????????# # # #? | | ??????????????? ##############+#### # """ ## | | ??????????????# """"" # """ + | | ??????????????# ""T"" ^ # """ ! ## | | ??????????????# ^ """ """ # #? | | ??????????????# ^ p"%%^"""k""" ###/#####? | | ??????????????# !""" """ """ #?# #????? | | ?????????????## k #?# ????? | | ?????????? ! #?# ???? | | ?????????? @ #?# ??? | | ???????????### ######## ? ?? | | ?????????????###????????+ ? ? | | ????????????????????????# u ? ? | | ????????????????????????# ##+#####+##?###### | | ????????????????????????#######????????????????? | | ????????????????????????????????????????????????? | | ?????????????????????????????????????????????????# | | ?????????????????????????????????????????????????? | | ?????????????????????????????????????????????????? | | ?????????????????????????????????????????????????? | | ?????????????????????????????????????????????????? | | ?????????????????????????????????????????????????? | | ?????????????????????????????????????????????????? | | ?????????????????????????????????????????????????? | | ?????????????????????????????????????????????????? | | ?????????????????????????????????????????????????? | | ?????????????????????????????????????????????????? | | ?????????????????????????????????????????????????? | | ?????????????????????????????????????????????????? | | ?????????????????????????????????????????????????? | | ?????????????????????????????????????????????????? | | ?????????????????????????????????????????????????? | | ?????????????????????????????????????????????????? | | ?????????????????????????????????????????????????? | +----------------------------------------------------+ Best States ------------- Heat Dissipation 51 Energy Generation 38 Energy Capacity 370 Matter Stores 300 Matter Capacity 300 Sight Range 22 Robot Scan Range 14 Terrain Scan Range 14 Terrain Scan Density 10 ECM Strength 1 Jamming Range 12 Armor Coverage 150 Propulsion Shielding 33 Evasion (%) 55 Salvage Targeting 1 Item Schematics ----------------- None Robot Schematics ------------------ None Fabricated ------------ Nothing Alien Tech Used ----------------- None Achievements -------------- 5k Club Everything Is Under Control Made in Tau Ceti IV One Hack Too Far Oops Power Corrupts Serviceable Loadout Short-term Sacrifices Total Silence Challenges ------------ None Game ------ Seed MeleeArmoredFirepult Manual? 0 Play Time 01:23:23 Cumulative 3.8 hours Start 2024.04.12 @ 08:53:55 End 2024.04.12 @ 10:30:48 Sessions 1 Manual Loads 0 Difficulty Rogue Special Mode None Game No. 3 Rogue 3 Adventurer 0 Explorer 0 Win Type - Total 0 Types 0/0/0/0/0/0/0/0/0 Lore% 2 Gallery% 7 Achievement% 7 Wizard Run 0 Options --------- Layout 1 ASCII 1 Keyboard 0 Movement Mouse Keybinds 0 Fullscreen 2 Font 24/Terminus Map View 50x35 Zoom Use 0% Tactical HUD 0 Map Filters NONE Filters NONE Steam 0 RUN: 6926bbce-0437-4734-8e16-34689c96303e